[Event "Czech Open-E Teams 2022"]
[Site "Pardubice"]
[Date "2022.07.17"]
[Round "7.39"]
[White "Vala, Filip"]
[Black "Volak, Simon"]
[Result "0-1"]
[ECO "E98"]
[WhiteElo "2139"]
[BlackElo "2082"]
[Annotator "TA"]
[PlyCount "114"]
[EventDate "2022.07.14"]
[EventType "team-tourn"]
[EventCountry "CZE"]
[SourceTitle "playchess.com"]
[Source "ChessBase"]
[SourceQuality "1"]
[TimeControl "5400+30"]

{[%evp 28,114,78,86,77,47,99,-8,41,13,13,-96,-75,-89,-92,-116,-131,-123,-112,-106,-43,-83,11,14,11,0,0,0,37,10,9,11,0,6,127,-107,0,-320,-186,-346,-338,-316,-295,-303,-244,-378,0,-483,-316,-320,-312,-490,-493,-903,-631,-1053,-954,-29986,-5406,-29991,-403,-330,-98,-98,-98,-98,-98,-98,-100,-100,-99,-100,-104,-193,-187,-166,-30,-33,-14,-78,0,-55,-41,-450,-421,-421,-420,-818,-805]} 1. d4 {[%emt 0:00:07]} Nf6 {[%emt 0:00:30]} 2. Nf3 {[%emt 0:00:13]} g6 {[%emt 0:00:37]} 3. c4 {[%emt 0:00:08]} Bg7 {[%emt 0:00:06]} 4. Nc3 {[%emt 0:00:05]} d6 {[%emt 0:00:19]} 5. e4 {[%emt 0:00:08]} O-O {[%emt 0:00:21]} 6. Be2 {[%emt 0:00:03]} e5 {[%emt 0:01:01]} 7. O-O {[%emt 0:02:09]} Nc6 {[%emt 0:02:08]} 8. d5 {[%emt 0:00:04]} Ne7 {[%emt 0:00:05]} 9. Ne1 {[%emt 0:00:03]} Ne8 {[%emt 0:02:07]} 10. Be3 {[%emt 0:02:52]} f5 {[%emt 0:00:13]} 11. f3 f4 {[%emt 0:03:47]} 12. Bf2 {[%emt 0:01:07]} g5 {[%emt 0:00:08][%cal Bg6g5,Bg5g4][%mdl 32]} 13. a4 {[%emt 0:02:26]} Nf6 {[%emt 0:05:07]} 14. a5 {[%emt 0:04:34]} h5 {[%emt 0:04:38]} 15. c5 {[%emt 0:12:41]} g4 {[%emt 0:10:40] E99: King's Indian: Classical Main Line: 9 Ne1 Nd7 10 f3 f5.} 16. Nb5 {[%emt 0:07:21]} Ng6 {[%emt 0:10:37] [#]} (16... g3 $1 $14 17. hxg3 fxg3 18. Bxg3 a6) 17. Qc2 $146 {[%emt 0:14:30]} (17. cxd6 $16 cxd6 18. Bxa7) ({Predecessor:} 17. cxd6 cxd6 18. Nxa7 g3 19. Bb6 gxh2+ 20. Kxh2 Qe7 21. Nxc8 Raxc8 22. a6 bxa6 23. Rxa6 Nd7 24. Bf2 Bf6 25. Nd3 Bh4 {0-1 (40) Lavrov,A (2385)-Kecskes,G (2220) Nagykanizsa 1993}) 17... Ne8 {[%emt 0:07:24]} (17... a6 $11 18. cxd6 axb5 19. dxc7 Qd7) 18. cxd6 {[%emt 0:04:42]} (18. a6 $5) 18... cxd6 {[%emt 0:00:59]} 19. g3 {[%emt 0:06:50]} (19. Bxa7 Qh4 $16) (19. Qd2 $11) 19... gxf3 {[%emt 0:06:20]} 20. Bxf3 {[%emt 0:01:26]} fxg3 {[%emt 0:06:41]} 21. Bxg3 {[%emt 0:03:54]} h4 {[%emt 0:06:52]} 22. Bf2 {[%emt 0:01:49]} (22. Bh5 $2 Rxf1+ 23. Kxf1 Bh3+ 24. Kg1 Qg5 25. Bxg6 Qxg6 $19) 22... Bh3 $1 {[%emt 0:03:14]} 23. Bg2 {[%emt 0:01:59]} Nf4 {[%emt 0:11:53]} (23... Bd7 $1 $17 {[%cal Rd7b5]} 24. Nc3 h3) 24. Kh1 {[%emt 0:20:04]} Qg5 {[%emt 0:13:16]} ({Black should play} 24... Nxg2 $17 25. Nxg2 Qd7) 25. Be3 $11 {[%emt 0:10:43] And now Bxh3 would win.} Bd7 {[%emt 0:01:37]} 26. Nc3 {[%emt 0:02:33]} Nf6 {[%emt 0:01:19][%cal Be8f6,Bf6h5,Bh5g3][%mdl 32]} 27. Rg1 {[%emt 0:00:27]} Qh6 {[%emt 0:01:28] Threatens to win with ...N6h5.} (27... Ng4 $5 {[%cal Rg4e3]} 28. Bxf4 Qxf4 $11) 28. Bf3 {[%emt 0:00:37]} Kh8 {[%emt 0:00:26]} 29. Nd3 {[%emt 0:00:24]} N6h5 $1 {[%emt 0:00:23][%cal Oh5g3] White must now prevent ...Ng3+!} 30. Ne2 {[%emt 0:00:41] Against Ng3+} Qh7 {[%emt 0:00:42]} (30... Bb5 $1 $11 {keeps the balance.} 31. Ra3 Bxd3 32. Rxd3 Qh7 33. Bxf4 Nxf4) 31. Nexf4 $2 {[%emt 0:00:44]} (31. Bxf4 $16 {[%cal Og1g5] Strongly threatening Rg5!} exf4 32. Rg5) 31... exf4 {[%emt 0:00:24]} (31... Ng3+ $1 $17 32. Kg2 (32. Rxg3 $2 hxg3 33. Ng6+ Qxg6 $19) 32... Rac8) 32. Bf2 $2 {[%emt 0:00:30][%mdl 8192] [#]} (32. Rg5 $11 Ng3+ 33. hxg3 fxe3 34. Rh5 Rxf3 35. Rxh7+ Kxh7 36. Qc7 (36. gxh4 $2 Rh3+ 37. Kg1 Bd4 $19)) 32... Rac8 {[%emt 0:00:25]} (32... Ng3+ $142 $1 {[%mdl 512]} 33. Bxg3 fxg3) 33. Qd1 $2 {[%emt 0:00:30] [#]} (33. Rxg7 Rxc2 34. Rxh7+ Kxh7 35. Bxh4 (35. Bxh5 $2 Bb5 $19)) 33... Ng3+ $1 $19 {[%emt 0:00:19][%mdl 512]} 34. Bxg3 {[%emt 0:00:33]} hxg3 {[%emt 0:00:25][%csl Gg3][%cal Rh7h2]} (34... fxg3 $2 35. Qe2 $19) 35. Rg2 {[%emt 0:00:11]} Bh3 {[%emt 0:00:35]} 36. Rd2 {[%emt 0:00:21]} (36. Re2 $142) 36... Bd7 $2 {[%emt 0:00:48]} (36... Bd4 $19 {...Be3 is the strong threat.} 37. Rc1 (37. Nxf4 $2 Rxf4 38. a6 bxa6 $19) 37... Rce8) 37. Rc1 $2 {[%emt 0:00:40][%mdl 8192]} (37. Rg2 $1 $11 {and White is okay.}) 37... Rxc1 {[%emt 0:00:06]} 38. Qxc1 {[%emt 0:00:19]} Bd4 {[%emt 0:00:18]} 39. Rg2 {[%emt 0:00:52]} (39. Qc7 $142 Bf2 40. Qc3+ Kg8 41. Rxf2 gxf2 42. Nxf2) 39... Bh3 {[%emt 0:00:31]} 40. Re2 {[%emt 0:00:16]} (40. Rc2 $142 Qh4 41. Qd2) 40... Be3 {[%emt 0:01:04] A strong pair of Bishops.} 41. Qc3+ {[%emt 0:00:41]} Kg8 {[%emt 0:00:05]} 42. Ne1 {[%emt 0:00:38]} Bf1 {[%emt 0:00:48]} (42... Bf2 $142 43. Rc2 {[#]} Bg4 $1 {[%mdl 512]} 44. Rxf2 gxf2 45. Kg2 fxe1=N+ 46. Qxe1 Qh3+ 47. Kg1 Bxf3 48. Qf1 Qg4+ 49. Kf2 Rc8 50. Ke1 Rc2 51. Qh3 Qg1+ 52. Qf1 Qe3+ 53. Qe2 Qxe2#) 43. Rc2 {[%emt 0:00:23]} Qg6 {[%emt 0:00:40]} (43... Qh3 $142 44. Bg4 Qxg4 45. a6 Bf2 46. Qg7+ Qxg7 47. Ng2 f3 48. Rxf2 gxf2 49. axb7 fxg2#) 44. Ng2 {[%emt 0:00:36]} gxh2 $2 {[%emt 0:00:27]} (44... Qh6 $19 {[%csl Gg3][%cal Rh6h2] has better winning chances.} 45. h4 Bxg2+ 46. Kxg2 Qxh4) 45. Qe1 $17 {[%emt 0:00:18]} Bd3 {[%emt 0:00:34][%csl LRc2,LRe4] Chess con chili. Black is much more active.} 46. Nxe3 {[%emt 0:00:33] aiming for Rg2.} Qg1+ {[%emt 0:00:17]} (46... fxe3 $2 47. Rg2 Qxg2+ 48. Kxg2 $18) 47. Qxg1+ {[%emt 0:00:08]} hxg1=Q+ {[%emt 0:00:04]} 48. Kxg1 {[%emt 0:00:02] Hoping for Rg2+.} fxe3 {[%emt 0:00:15][%mdl 4096] Endgame KRB-KRB} 49. Rg2+ {[%emt 0:00:37]} Kh7 {[%emt 0:01:05]} 50. Rg3 {[%emt 0:00:58]} (50. Be2 $17 {keeps fighting.} Bxe4 51. Rg3) 50... Kh6 $19 {[%emt 0:00:48]} 51. Kg2 {[%emt 0:00:43]} e2 {[%emt 0:00:33]} (51... Rf6 $19 52. b3 Rf8) 52. Rh3+ {[%emt 0:00:33]} Kg7 {[%emt 0:00:25]} 53. Rg3+ {[%emt 0:00:33]} (53. Kf2 $1 $11) 53... Kh6 {[%emt 0:00:19]} 54. Rh3+ {[%emt 0:00:30]} Kg5 {[%emt 0:00:36]} 55. Rh1 {[%emt 0:00:23][%mdl 8192]} (55. Kf2 $15) 55... Kf4 {[%emt 0:00:38]} 56. Kf2 {[%emt 0:00:23]} Ke5 {[%emt 0:00:29]} 57. Re1 {[%emt 0:00:51]} (57. Rh5+ $142 Kd4 58. Rf5) 57... Bxe4 {[%emt 0:00:13] Weighted Error Value: White=1.15/Black=0.88} 0-1

[Event "Czech Open-E Teams 2022"]
[Site "Pardubice"]
[Date "2022.07.17"]
[Round "7.40"]
[White "Kacirek, Pavel"]
[Black "Babicka, Michal"]
[Result "1/2-1/2"]
[ECO "D05"]
[WhiteElo "1859"]
[BlackElo "1989"]
[Annotator "RC"]
[PlyCount "40"]
[EventDate "2022.07.14"]
[EventType "team-tourn"]
[EventCountry "CZE"]
[SourceTitle "playchess.com"]
[Source "ChessBase"]
[SourceQuality "1"]
[TimeControl "5400+30"]

1. d4 {[%emt 0:00:07]} Nf6 {[%emt 0:00:06]} 2. Nf3 {[%emt 0:00:54]} d5 {[%emt 0:00:12]} 3. e3 {[%emt 0:00:28]} e6 {[%emt 0:00:18]} 4. Be2 {[%emt 0:00:28]} c5 {[%emt 0:00:11]} 5. b3 {[%emt 0:00:19]} Nc6 {[%emt 0:00:47]} 6. Bb2 {[%emt 0:00:07]} cxd4 {[%emt 0:00:46]} 7. Nxd4 {[%emt 0:01:27]} Bb4+ {[%emt 0:02:58]} 8. c3 {[%emt 0:00:11]} Bd6 {[%emt 0:02:28]} 9. Nxc6 {[%emt 0:00:22]} bxc6 {[%emt 0:00:07]} 10. Nd2 {[%emt 0:00:07]} O-O {[%emt 0:03:09]} 11. O-O {[%emt 0:03:15]} a5 {[%emt 0:04:56]} 12. Qc2 {[%emt 0:06:31]} Ba6 {[%emt 0:03:04]} 13. Bxa6 {[%emt 0:00:25]} Rxa6 {[%emt 0:00:08]} 14. e4 {[%emt 0:00:06]} Qc7 {[%emt 0:05:32]} 15. h3 Bf4 {[%emt 0:03:06]} 16. c4 {[%emt 0:11:29]} Be5 {[%emt 0:15:27]} 17. cxd5 {[%emt 0:02:55]} Bxb2 {[%emt 0:00:25]} 18. Qxb2 {[%emt 0:00:02]} cxd5 {[%emt 0:00:29]} 19. Rac1 {[%emt 0:00:21]} Qb7 {[%emt 0:01:12]} 20. exd5 {[%emt 0:03:27]} Nxd5 {[%emt 0:00:55]} 1/2-1/2

[Event "Czech Open-E Teams 2022"]
[Site "Pardubice"]
[Date "2022.07.17"]
[Round "7.41"]
[White "Bartos, Jan"]
[Black "Bouska, Jiri"]
[Result "0-1"]
[ECO "E91"]
[WhiteElo "2142"]
[BlackElo "2157"]
[Annotator "RC"]
[PlyCount "70"]
[EventDate "2022.07.14"]
[EventType "team-tourn"]
[EventCountry "CZE"]
[SourceTitle "playchess.com"]
[Source "ChessBase"]
[SourceQuality "1"]
[TimeControl "5400+30"]

1. d4 {[%emt 0:00:03]} Nf6 {[%emt 0:01:45]} 2. c4 {[%emt 0:00:04]} g6 {[%emt 0:00:03]} 3. Nc3 {[%emt 0:00:04]} Bg7 {[%emt 0:00:04]} 4. e4 {[%emt 0:00:04]} d6 {[%emt 0:00:04]} 5. Nf3 {[%emt 0:00:06]} O-O {[%emt 0:00:05]} 6. Be2 {[%emt 0:00:03]} c5 {[%emt 0:00:07]} 7. d5 {[%emt 0:00:13]} e6 {[%emt 0:00:14]} 8. O-O {[%emt 0:00:16]} exd5 {[%emt 0:00:15]} 9. exd5 {[%emt 0:00:06]} Re8 {[%emt 0:00:19]} 10. h3 {[%emt 0:00:23]} Bf5 {[%emt 0:00:16]} 11. Bd3 {[%emt 0:00:43]} Bxd3 {[%emt 0:06:47]} 12. Qxd3 {[%emt 0:00:06]} Na6 {[%emt 0:07:47]} 13. a3 {[%emt 0:05:42]} Nc7 {[%emt 0:01:08]} 14. Rb1 {[%emt 0:00:28]} Qd7 {[%emt 0:06:53]} 15. b4 {[%emt 0:01:23]} b6 {[%emt 0:06:47]} 16. bxc5 {[%emt 0:00:27]} bxc5 {[%emt 0:00:22]} 17. Bd2 {[%emt 0:00:29]} Rab8 {[%emt 0:00:50]} 18. Qc2 {[%emt 0:03:07]} Na8 {[%emt 0:07:18]} 19. Rxb8 {[%emt 0:04:01]} Rxb8 {[%emt 0:01:38]} 20. Rb1 {[%emt 0:00:14]} Qd8 {[%emt 0:02:59]} 21. Nb5 {[%emt 0:08:51]} a6 {[%emt 0:02:06]} 22. Na7 {[%emt 0:02:25]} Rxb1+ {[%emt 0:02:24]} 23. Qxb1 {[%emt 0:00:41]} Qb6 {[%emt 0:00:32]} 24. Qxb6 {[%emt 0:06:55]} Nxb6 {[%emt 0:00:33]} 25. Bc1 {[%emt 0:01:05]} Nxc4 {[%emt 0:00:18]} 26. Nd2 {[%emt 0:02:37]} Nxd2 {[%emt 0:03:04]} 27. Bxd2 {[%emt 0:00:09]} Nxd5 {[%emt 0:00:10]} 28. Nc8 {[%emt 0:01:35]} Be5 {[%emt 0:00:51]} 29. g3 {[%emt 0:00:30]} c4 {[%emt 0:00:10]} 30. Bc1 {[%emt 0:02:07]} Nc3 {[%emt 0:01:01]} 31. Kf1 {[%emt 0:03:14]} Na2 {[%emt 0:00:38]} 32. Bh6 {[%emt 0:00:05]} c3 {[%emt 0:00:33]} 33. Ne7+ {[%emt 0:05:20]} Kh8 {[%emt 0:00:08]} 34. Nd5 {[%emt 0:02:36]} c2 {[%emt 0:00:33]} 35. Nb4 {[%emt 0:00:05]} Nxb4 {[%emt 0:00:11]} 0-1

[Event "Czech Open-E Teams 2022"]
[Site "Pardubice"]
[Date "2022.07.17"]
[Round "7.42"]
[White "Lihotsky, Lukas"]
[Black "Pokorny, Petr"]
[Result "1/2-1/2"]
[ECO "D31"]
[WhiteElo "1935"]
[BlackElo "2139"]
[Annotator "TA"]
[PlyCount "20"]
[EventDate "2022.07.14"]
[EventType "team-tourn"]
[EventCountry "CZE"]
[SourceTitle "playchess.com"]
[Source "ChessBase"]
[SourceQuality "1"]
[TimeControl "5400+30"]

{[%evp 9,20,41,41,31,35,25,38,49,54,6,11,2,23]} 1. d4 {[%emt 0:00:08]} d5 {[%emt 0:00:06]} 2. c4 {[%emt 0:00:04]} e6 {[%emt 0:00:06]} 3. Nc3 {[%emt 0:00:03]} c6 {[%emt 0:00:04]} 4. e4 {[%emt 0:00:34]} Bb4 {[%emt 0:00:20]} 5. cxd5 {[%emt 0:04:23]} exd5 {[%emt 0:00:07]} 6. e5 {[%emt 0:01:48] D31: Queen's Gambit Declined: Semi-Slav without ...Nf6 (+ Marshall Gambit and Noteboom) and Exchange Variation lines without ...Nf6.} c5 {[%emt 0:00:03]} 7. a3 {[%emt 0:02:57]} Bxc3+ {[%emt 0:00:07]} 8. bxc3 {[%emt 0:00:04]} Nc6 {[%emt 0:00:07]} 9. Be3 {[%emt 0:03:29]} (9. Be2 $14) 9... Nge7 $11 {[%emt 0:04:56] [#]} 10. Nf3 $146 {[%emt 0:03:32]} ({Predecessor:} 10. Bd3 cxd4 11. cxd4 Bf5 12. Ne2 Qa5+ 13. Bd2 Qc7 14. Bxf5 Nxf5 15. Qc2 Qd7 16. Qd3 {1-0 (39) Cmilyte,V (2467)-Cosma,E (2370) Predeal 2007}) 10... Qa5 {[%emt 0:06:43] Black took control after the opening.  Weighted Error Value: White=0.13 (very precise) /Black=0.04 (flawless)} 1/2-1/2

[Event "Czech Open-E Teams 2022"]
[Site "Pardubice"]
[Date "2022.07.17"]
[Round "7.43"]
[White "Lamser, Jan"]
[Black "Stocek, Martin"]
[Result "0-1"]
[ECO "A80"]
[WhiteElo "2124"]
[BlackElo "1851"]
[Annotator "TA"]
[PlyCount "50"]
[EventDate "2022.07.14"]
[EventType "team-tourn"]
[EventCountry "CZE"]
[SourceTitle "playchess.com"]
[Source "ChessBase"]
[SourceQuality "1"]
[TimeControl "5400+30"]

{[%evp 24,50,50,24,25,0,22,0,22,0,10,4,8,-106,-77,-134,-149,-247,-231,-220,-233,-238,-228,-510,-510,-489,-489,-759,-759]} 1. d4 {[%emt 0:00:03]} f5 {[%emt 0:00:12]} 2. Nf3 {[%emt 0:00:36]} Nf6 {[%emt 0:00:30]} 3. g3 {[%emt 0:00:06]} e6 {[%emt 0:00:10]} 4. Bg2 {[%emt 0:00:13]} d5 {[%emt 0:00:36]} 5. O-O {[%emt 0:00:26]} Bd6 {[%emt 0:01:09]} 6. c4 {[%emt 0:01:41]} c6 {[%emt 0:01:44]} 7. b3 {[%emt 0:01:10]} Qe7 {[%emt 0:03:43]} 8. Nbd2 {[%emt 0:01:35]} Nbd7 {[%emt 0:00:40]} 9. Bb2 {[%emt 0:00:05]} Ne4 {[%emt 0:05:03]} 10. Ne5 {[%emt 0:00:50]} Nxd2 {[%emt 0:03:40]} 11. Qxd2 {[%emt 0:00:06]} O-O {[%emt 0:01:11]} 12. Nd3 {[%emt 0:02:01]} Nf6 {[%emt 0:03:40]} 13. f3 b6 {[%emt 0:07:25] [#] A90: Dutch Defence: Miscellaneous and Modern Stonewall (with ...Bd6).} 14. Nf2 $146 {[%emt 0:02:37]} ({Predecessor:} 14. Rae1 Bb7 15. e3 Rac8 16. Nf2 dxc4 17. bxc4 Bb4 18. Bc3 Bxc3 19. Qxc3 c5 20. Nd3 cxd4 21. exd4 {½-½ (119) Aubert,E (1854)-Defromont,B (2132) Avoine 2018}) 14... e5 {[%emt 0:11:27]} 15. cxd5 {[%emt 0:02:58]} cxd5 {[%emt 0:08:59] The position is equal.} 16. e4 {[%emt 0:00:15]} dxe4 {[%emt 0:11:31]} 17. fxe4 {[%emt 0:00:30]} Bb7 {[%emt 0:04:34][%cal Rf5e4]} 18. d5 {[%emt 0:05:36]} (18. exf5 $11 {remains equal.} Bxg2 19. Kxg2) 18... Bc5 $17 {[%emt 0:06:59] [#] White must now prevent ...Nxe4.} 19. Kh1 {[%emt 0:01:55]} (19. d6 $142 Rfd8 20. exf5 Bxg2 21. Kxg2) 19... Rad8 {[%emt 0:01:20]} 20. Qg5 {[%emt 0:03:10]} (20. Qe2 $17) 20... Ba6 $19 {[%emt 0:04:38]} 21. exf5 {[%emt 0:01:24][%cal Of2g4]} ({Don't blunder} 21. Qxf5 $2 Bxf1 22. Bxf1 Nd7 $19) 21... Bxf1 {[%emt 0:00:44]} ({Weaker is} 21... Nxd5 22. Qxe7 Nxe7 23. Ne4) 22. Rxf1 {[%emt 0:00:05]} Nxd5 {[%emt 0:01:52][%cal Bf6d5,Bd5e3,Be3f1][%mdl 32]} 23. Ne4 {[%emt 0:01:38] [#]} (23. Qxe7 {is a better defense.} Bxe7 24. Be4) 23... Qxg5 {[%emt 0:03:14] Black is clearly winning.} 24. Nxg5 {[%emt 0:00:06]} Ne3 $1 {[%emt 0:00:45][%csl LRf1,LRf5]} 25. Ne6 {[%emt 0:01:07]} (25. Rb1 $142 Nxg2 26. Ne6) 25... Nxf1 {[%emt 0:00:26] White did not feel at home in the position after the opening.  Weighted Error Value: White=0.87/Black=0.03 (flawless)} 0-1

[Event "Czech Open-E Teams 2022"]
[Site "Pardubice"]
[Date "2022.07.17"]
[Round "7.44"]
[White "Juchelka, Marek"]
[Black "Hruska, Jan"]
[Result "0-1"]
[ECO "C97"]
[WhiteElo "1803"]
[BlackElo "2145"]
[Annotator "TA"]
[PlyCount "126"]
[EventDate "2022.07.14"]
[EventType "team-tourn"]
[EventCountry "CZE"]
[SourceTitle "playchess.com"]
[Source "ChessBase"]
[SourceQuality "1"]
[TimeControl "5400+30"]

{[%evp 22,126,37,26,84,45,85,8,14,0,36,27,51,40,40,15,44,48,39,37,48,49,61,56,60,-39,28,19,39,-319,-324,-309,-281,-271,-277,-524,-514,-699,-667,-633,-445,-588,-322,-300,-298,-216,-175,-352,-333,-328,-180,-231,-179,-179,9,0,128,129,104,109,129,0,0,0,0,0,40,7,25,-360,64,-122,-65,-1318,-1641,-2598,-2591,-1529,0,0,0,0,0,-343,-303,-29996,-29997,-29997,-29989,-29989,-29990,-29990,-29989,-29989,-29990,-29990,-29991,-29991,-29987,-29992,-29988,-29993,-29989,-29992,-29993,-29997,-29998]} 1. e4 {[%emt 0:00:03]} e5 {[%emt 0:00:01]} 2. Nf3 {[%emt 0:00:10]} Nc6 {[%emt 0:00:06]} 3. Bb5 {[%emt 0:00:06]} a6 {[%emt 0:00:04]} 4. Ba4 {[%emt 0:00:07]} Nf6 {[%emt 0:00:06]} 5. O-O {[%emt 0:00:09]} Be7 {[%emt 0:00:05]} 6. Re1 {[%emt 0:00:24]} b5 {[%emt 0:00:05]} 7. Bb3 {[%emt 0:00:04]} d6 {[%emt 0:00:04]} 8. c3 {[%emt 0:00:08]} O-O {[%emt 0:00:09]} 9. h3 {[%emt 0:00:37]} Na5 {[%emt 0:00:06]} 10. Bc2 {[%emt 0:00:14]} c5 {[%emt 0:00:02]} 11. d4 {[%emt 0:00:43]} Qc7 {[%emt 0:00:03]} 12. d5 {[%emt 0:01:18]} c4 {[%emt 0:01:00] C97: Closed Ruy Lopez: Chigorin Defence: 11 d4 Qc7, sidelines.} (12... Nd7 $11 {remains equal.}) 13. Be3 {[%emt 0:01:02]} Bd7 {[%emt 0:00:41]} 14. Nbd2 {[%emt 0:01:12]} (14. b4 $1 $16 {[%cal Rb4a5]}) 14... Rfb8 {[%emt 0:00:23] [#] The position is equal.} 15. a3 $146 {[%emt 0:01:32]} ({Predecessor:} 15. Nh2 b4 16. f4 Ne8 17. f5 Bd8 18. Ng4 Nf6 19. Nf2 h6 20. g4 Nh7 21. Nf3 {½-½ (51) Vetokhin,S (2339)-Stojanovic,D (2485) Arandjelovac 2021}) 15... Bf8 {[%emt 0:00:51]} 16. Nf1 {[%emt 0:01:58]} g6 {[%emt 0:00:22]} 17. N3h2 {[%emt 0:00:43]} Bg7 {[%emt 0:03:00]} 18. Qd2 {[%emt 0:01:24]} Nxe4 {[%emt 0:09:36]} 19. Bxe4 {[%emt 0:02:31]} Nb3 {[%emt 0:00:06][%csl LRa1,LRd2] [#]} 20. Qe2 {[%emt 0:00:37] And now Rad1 would win.} Nxa1 {[%emt 0:02:43]} (20... f5 21. Bc2) 21. Rxa1 {[%emt 0:00:01]} f5 {[%emt 0:00:14]} 22. Bc2 {[%emt 0:00:16]} a5 {[%emt 0:01:22][%cal Ba6a5,Ba5b4][%mdl 32]} 23. f4 {[%emt 0:05:49]} (23. Rd1 $14) 23... e4 {[%emt 0:00:39]} ({Black should try} 23... exf4 $15 24. Bxf4 b4 25. axb4 axb4 26. Rxa8 Rxa8) 24. Qd2 $11 {[%emt 0:01:15]} Qb7 {[%emt 0:04:21]} 25. b3 $2 {[%emt 0:04:08][%mdl 8192]} (25. Ng3 $14) 25... b4 $19 {[%emt 0:12:58]} 26. axb4 {[%emt 0:05:02]} axb4 {[%emt 0:00:11]} 27. Rxa8 {[%emt 0:00:35]} Rxa8 {[%emt 0:00:07]} 28. bxc4 $2 {[%emt 0:08:12]} (28. cxb4 c3 29. Qd1) 28... Bxc3 {[%emt 0:01:54]} 29. Qc1 {[%emt 0:03:07]} Ra1 {[%emt 0:02:31]} 30. Bb1 {[%emt 0:00:01]} Ba4 {[%emt 0:02:28]} 31. Nd2 {[%emt 0:01:30]} Qg7 {[%emt 0:06:24]} 32. Nhf1 {[%emt 0:03:48]} b3 {[%emt 0:03:32]} 33. Qe1 {[%emt 0:01:38]} b2 {[%emt 0:01:00][%mdl 1024] Threatens to win with ...Bc2. Black has strong compensation.} 34. Qh4 $2 {[%emt 0:00:26]} (34. Qe2) 34... Bf6 {[%emt 0:00:41]} 35. Qf2 {[%emt 0:00:55]} Bd1 {[%emt 0:05:29] Inhibits g4.} (35... Bb3 $142 {[%cal Ob3c4]} 36. Qe2 Qc7 $1) 36. Kh2 {[%emt 0:01:21]} (36. c5 $142) 36... h6 {[%emt 0:05:08][%cal Od1b3]} 37. c5 {[%emt 0:03:09]} Qf7 $2 {[%emt 0:08:34]} ({Black should play} 37... dxc5 $19 {[%cal Oc5c4] Strongly threatening ...c4!} 38. Bxc5 Bb3 $1 {[%mdl 512]}) 38. Bd4 $11 {[%emt 0:01:18]} dxc5 {[%emt 0:09:07]} (38... Bxd4 $11 {keeps the balance.} 39. Qxd4 Qg7) 39. Bxf6 $16 {[%emt 0:00:32]} Qxf6 {[%emt 0:00:00]} 40. Qxc5 {[%emt 0:00:18] aiming for d6.} Be2 {[%emt 0:01:29]} 41. Qc8+ {[%emt 0:01:54]} (41. Ng3 $1 $16 {[%cal Rg3e2]} Bd3 42. d6) 41... Qf8 $11 {[%emt 0:00:22]} 42. Qe6+ {[%emt 0:00:33]} Qf7 {[%emt 0:00:16] ...Qxe6 is the strong threat. The board is on fire.} 43. Qc8+ {[%emt 0:09:16]} Kh7 {[%emt 0:00:40] Hoping for ...Bxf1.} (43... Qf8 $5 {[%cal Rf8c8]} 44. Qe6+ Kh7 $11) 44. d6 {[%emt 0:00:43] Black must now prevent d7.} Ra7 {[%emt 0:00:08] Prevents d7.} (44... Bxf1 $2 45. d7 Ra8 46. Qxa8 $18) 45. Ba2 $2 {[%emt 0:03:40][%mdl 8192] Against Qd5} Qg7 $2 {[%emt 0:05:48] [#]} (45... Rxa2 46. d7 Ra8 47. Qxa8 $11) (45... Qxa2 $19 46. d7 b1=Q) 46. Be6 $2 {[%emt 0:02:59]} (46. Ne3 $1 $14 {stays ahead.} Rxa2 47. d7) 46... Bxf1 $17 {[%emt 0:03:24]} 47. d7 $2 {[%emt 0:00:23][%mdl 8192] [#]} (47. Qb8 $15) 47... Rxd7 $3 $19 {[%emt 0:00:14][%mdl 512]} 48. Bxd7 {[%emt 0:01:30] [#]} (48. Bg8+ Qxg8) 48... e3 $1 {[%emt 0:00:19]} 49. Nb1 {[%emt 0:01:13]} e2 $2 {[%emt 0:00:25]} (49... Bd3 $19 50. Nc3 e2 51. Nxe2 b1=Q) 50. Qe8 $11 {[%emt 0:00:09]} h5 {[%emt 0:02:34]} 51. Bc6 {[%emt 0:02:23]} Qc7 {[%emt 0:02:22]} 52. Kg3 {[%emt 0:04:15][%mdl 8192] [#]} (52. Kg1 $11) 52... h4+ $1 $19 {[%emt 0:01:40][%mdl 64] Deflection, Decoy} (52... Qxc6 53. Qf7+ Kh8 54. Qf8+ Kh7 55. Qf7+ Kh8 56. Qf8+ Kh7 57. Qf7+ $11) 53. Kxh4 $2 {[%emt 0:02:12]} (53. Kf2 $19 Qxf4+ 54. Bf3 Qd4+ 55. Ke1 Qb4+ 56. Kf2 Qc5+ 57. Ke1 Bxg2 58. Bxg2 (58. Qd7+ $2 Kh6 $19) 58... Qg1+ 59. Kxe2 Qxg2+ 60. Kd1 Qxh3 61. Kc2) 53... Qxf4+ {[%emt 0:00:20] Black mates.} 54. g4 {[%emt 0:00:17]} Qh6+ {[%emt 0:00:26]} (54... Qf2+ 55. Kg5 Qd4 56. Qxg6+ Kh8 57. Qh6+ Kg8 58. Qe6+ Kh8 59. Qc8+ Kh7 60. Qxf5+ Kh8 61. Qf8+ Kh7 62. Qh6+ Kg8 63. Qe6+ Kh7 64. Be4+ Kh8 65. Qe8+ Kg7 66. Qe7+ Kg8 67. Bh7+ Kh8 68. Kh6) 55. Kg3 {[%emt 0:00:28]} Qxh3+ {[%emt 0:00:10]} 56. Kf2 {[%emt 0:00:05]} Qh4+ {[%emt 0:00:27]} 57. Kf3 {[%emt 0:01:04]} fxg4+ {[%emt 0:04:32]} 58. Kf4 {[%emt 0:00:04]} Qf2+ {[%emt 0:03:09]} 59. Kg5 {[%emt 0:00:57]} Qf5+ {[%emt 0:01:04]} ({Weaker is} 59... e1=Q 60. Qxg6+ Kh8 61. Qh6+ Kg8 62. Bd5+ Qf7 63. Qg6+ Kh8 64. Bxf7 (64. Qxf7 Qe5+ 65. Kh4 Qh2+ 66. Kxg4 Be2+ 67. Kg5 Qg1+ 68. Kf6 Qf2+ 69. Kg5 Qg1+ 70. Kf6 Qf2+ 71. Kg5 Qg1+ $11) 64... Qe5+ 65. Kxg4 Be2+ 66. Kh3 Qe3+ 67. Kh2 (67. Kg2 Qf3+ 68. Kg1 Qf1+ 69. Kh2 Qf4+ 70. Kg2 Qf3+ 71. Kh2 Qf4+ 72. Kh1 Qf3+ 73. Kh2 Qf4+ $11) 67... Qf4+ 68. Kh1 Qf3+ 69. Kh2 Qf4+ 70. Kh1 Qf3+ 71. Kh2 Qf4+ $11) 60. Kh4 {[%emt 0:00:02]} Qf6+ {[%emt 0:00:39]} 61. Kg3 {[%emt 0:00:42]} Kh6 {[%emt 0:01:50]} 62. Qe3+ {[%emt 0:01:36]} g5 {[%emt 0:00:15]} 63. Qe4 {[%emt 0:02:02]} e1=Q+ {[%emt 0:00:36] Weighted Error Value: White=1.00/Black=0.48} 0-1